[Event "December 19 Early 2023"]
[Site "https://www.chess.com"]
[Date "2023.12.19"]
[Round "8"]
[White "Devaev, Alexander"]
[Black "Yeritsyan, Hayk"]
[Result "0-1"]
[Board "75"]
[TimeControl "180+1"]
[WhiteFideId "4169395"]
[BlackFideId "13307320"]
[WhiteElo "2172"]
[BlackElo "2130"]
[WhiteTeam "RUS"]
[BlackTeam "ARM"]
[WhiteClock "0:00:00"]
[BlackClock "0:02:24"]

1. d4 {[%clk 0:02:54]}  Nf6 {[%clk 0:02:59]} 2. c4 {[%clk 0:02:54]}  c5 {[%clk 0:02:59]} 3. d5 {[%clk 0:02:54]}  b5 {[%clk 0:02:57]} 4. cxb5 {[%clk 0:02:54]}  a6 {[%clk 0:02:57]} 5. e3 {[%clk 0:02:55]}  g6 {[%clk 0:02:56]} 6. Nc3 {[%clk 0:02:54]}  Bg7 {[%clk 0:02:56]} 7. a4 {[%clk 0:02:52]}  O-O {[%clk 0:02:56]} 8. Rb1 {[%clk 0:02:53]}  d6 {[%clk 0:02:55]} 9. Bd3 {[%clk 0:02:49]}  axb5 {[%clk 0:02:51]} 10. axb5 {[%clk 0:02:49]}  Bb7 {[%clk 0:02:43]} 11. e4 {[%clk 0:02:49]}  e6 {[%clk 0:02:43]} 12. dxe6 {[%clk 0:02:46]}  fxe6 {[%clk 0:02:43]} 13. Nf3 {[%clk 0:02:27]}  d5 {[%clk 0:02:41]} 14. Qe2 {[%clk 0:02:26]}  c4 {[%clk 0:02:39]} 15. Bxc4 {[%clk 0:02:14]}  dxc4 {[%clk 0:02:38]} 16. Qxc4 {[%clk 0:02:15]}  Qc8 {[%clk 0:02:34]} 17. Qe2 {[%clk 0:02:11]}  Nbd7 {[%clk 0:02:31]} 18. Bf4 {[%clk 0:02:09]}  Nc5 {[%clk 0:02:30]} 19. Bd6 {[%clk 0:02:09]}  Rd8 {[%clk 0:02:29]} 20. e5 {[%clk 0:02:09]}  Nd5 {[%clk 0:02:26]} 21. O-O {[%clk 0:01:48]}  Nxc3 {[%clk 0:02:23]} 22. bxc3 {[%clk 0:00:00]}  Ne4 {[%clk 0:02:24]} 0-1

[Event "December 19 Early 2023"]
[Site "https://www.chess.com"]
[Date "2023.12.19"]
[Round "8"]
[White "Fromm, Marius"]
[Black "Krzywda, Andrzej"]
[Result "1-0"]
[Board "78"]
[TimeControl "180+1"]
[WhiteFideId "12993190"]
[BlackFideId "1114565"]
[WhiteElo "2335"]
[BlackElo "2130"]
[WhiteTeam "GER"]
[BlackTeam "POL"]
[WhiteClock "0:00:58"]
[BlackClock "0:00:05"]

1. e4 {[%clk 0:03:00]}  e5 {[%clk 0:02:58]} 2. Nf3 {[%clk 0:03:00]}  Nf6 {[%clk 0:02:58]} 3. Nxe5 {[%clk 0:03:00]}  d6 {[%clk 0:02:58]} 4. Nf3 {[%clk 0:03:01]}  Nxe4 {[%clk 0:02:59]} 5. d4 {[%clk 0:03:02]}  d5 {[%clk 0:02:59]} 6. Bd3 {[%clk 0:03:02]}  Be7 {[%clk 0:03:00]} 7. O-O {[%clk 0:03:03]}  Bf5 {[%clk 0:03:00]} 8. Re1 {[%clk 0:03:02]}  O-O {[%clk 0:03:01]} 9. Nbd2 {[%clk 0:03:03]}  Nd6 {[%clk 0:03:01]} 10. Nf1 {[%clk 0:03:03]}  Bxd3 {[%clk 0:03:00]} 11. Qxd3 {[%clk 0:03:02]}  c6 {[%clk 0:03:00]} 12. Bf4 {[%clk 0:03:01]}  Na6 {[%clk 0:03:00]} 13. Ng3 {[%clk 0:02:45]}  Nc7 {[%clk 0:03:00]} 14. Qb3 {[%clk 0:02:37]}  Rb8 {[%clk 0:02:33]} 15. a4 {[%clk 0:02:36]}  Ne6 {[%clk 0:02:31]} 16. Bxd6 {[%clk 0:02:36]}  Bxd6 {[%clk 0:02:29]} 17. Nf5 {[%clk 0:02:37]}  Bc7 {[%clk 0:02:25]} 18. g3 {[%clk 0:02:30]}  Qf6 {[%clk 0:02:24]} 19. Qd3 {[%clk 0:02:31]}  g6 {[%clk 0:02:23]} 20. Nh6+ {[%clk 0:02:31]}  Kh8 {[%clk 0:02:09]} 21. Ng4 {[%clk 0:02:31]}  Qg7 {[%clk 0:02:08]} 22. h4 {[%clk 0:02:27]}  Rbe8 {[%clk 0:02:02]} 23. Kg2 {[%clk 0:02:26]}  f5 {[%clk 0:01:57]} 24. Nge5 {[%clk 0:02:24]}  f4 {[%clk 0:01:57]} 25. g4 {[%clk 0:02:24]}  Re7 {[%clk 0:01:33]} 26. Re2 {[%clk 0:02:18]}  Rfe8 {[%clk 0:01:32]} 27. Rae1 {[%clk 0:02:19]}  Qf6 {[%clk 0:01:21]} 28. g5 {[%clk 0:02:14]}  Qf8 {[%clk 0:01:17]} 29. Ng4 {[%clk 0:02:10]}  Ng7 {[%clk 0:01:11]} 30. Nf6 {[%clk 0:02:08]}  Rxe2 {[%clk 0:01:05]} 31. Rxe2 {[%clk 0:02:09]}  Rxe2 {[%clk 0:01:01]} 32. Qxe2 {[%clk 0:02:09]}  Bd8 {[%clk 0:00:52]} 33. Qe5 {[%clk 0:02:09]}  Be7 {[%clk 0:00:47]} 34. Qxf4 {[%clk 0:02:02]}  Bd6 {[%clk 0:00:47]} 35. Ne5 {[%clk 0:02:01]}  Nf5 {[%clk 0:00:41]} 36. c3 {[%clk 0:02:00]}  Kg7 {[%clk 0:00:39]} 37. h5 {[%clk 0:01:55]}  Qe7 {[%clk 0:00:37]} 38. h6+ {[%clk 0:01:52]}  Kh8 {[%clk 0:00:37]} 39. Qh2 {[%clk 0:01:29]}  c5 {[%clk 0:00:26]} 40. f4 {[%clk 0:01:09]}  cxd4 {[%clk 0:00:26]} 41. cxd4 {[%clk 0:01:07]}  Nxd4 {[%clk 0:00:25]} 42. Qh3 {[%clk 0:01:05]}  Nf5 {[%clk 0:00:21]} 43. Qc3 {[%clk 0:01:01]}  Bxe5 {[%clk 0:00:05]} 44. Qc8+ {[%clk 0:00:58]} 1-0

[Event "December 19 Early 2023"]
[Site "https://www.chess.com"]
[Date "2023.12.19"]
[Round "8"]
[White "Parfenov, Viktor N."]
[Black "Tokhirjonova, Gulrukhbegim"]
[Result "1-0"]
[Board "81"]
[TimeControl "180+1"]
[WhiteFideId "4165969"]
[BlackFideId "14203626"]
[WhiteElo "2093"]
[BlackElo "2265"]
[WhiteTeam "RUS"]
[BlackTeam "USA"]
[WhiteClock "0:00:14"]
[BlackClock "0:00:00"]

1. e4 {[%clk 0:02:59]}  e5 {[%clk 0:02:57]} 2. Nf3 {[%clk 0:02:58]}  Nc6 {[%clk 0:02:57]} 3. Bc4 {[%clk 0:02:58]}  Bc5 {[%clk 0:02:57]} 4. c3 {[%clk 0:02:58]}  Nf6 {[%clk 0:02:57]} 5. d3 {[%clk 0:02:58]}  a6 {[%clk 0:02:55]} 6. a4 {[%clk 0:02:57]}  h6 {[%clk 0:02:53]} 7. O-O {[%clk 0:02:56]}  d6 {[%clk 0:02:53]} 8. Re1 {[%clk 0:02:53]}  O-O {[%clk 0:02:52]} 9. h3 {[%clk 0:02:52]}  Re8 {[%clk 0:02:51]} 10. Nbd2 {[%clk 0:02:37]}  Be6 {[%clk 0:02:47]} 11. Bxe6 {[%clk 0:02:37]}  Rxe6 {[%clk 0:02:46]} 12. b4 {[%clk 0:02:37]}  Ba7 {[%clk 0:02:45]} 13. Qc2 {[%clk 0:02:37]}  Re8 {[%clk 0:02:45]} 14. Nf1 {[%clk 0:02:11]}  Ne7 {[%clk 0:02:42]} 15. Be3 {[%clk 0:02:09]}  Ng6 {[%clk 0:02:41]} 16. Bxa7 {[%clk 0:02:07]}  Rxa7 {[%clk 0:02:42]} 17. Ng3 {[%clk 0:02:03]}  Nf4 {[%clk 0:02:40]} 18. d4 {[%clk 0:01:58]}  Ra8 {[%clk 0:02:38]} 19. dxe5 {[%clk 0:01:52]}  dxe5 {[%clk 0:02:39]} 20. Rad1 {[%clk 0:01:48]}  Qc8 {[%clk 0:02:39]} 21. Nf5 {[%clk 0:01:48]}  Qe6 {[%clk 0:02:37]} 22. Kh2 {[%clk 0:01:44]}  c6 {[%clk 0:02:35]} 23. g3 {[%clk 0:01:44]}  Ng6 {[%clk 0:02:34]} 24. Rd6 {[%clk 0:01:41]}  Qc8 {[%clk 0:02:29]} 25. Nxh6+ {[%clk 0:01:39]}  gxh6 {[%clk 0:02:27]} 26. Rxf6 {[%clk 0:01:39]}  Qd8 {[%clk 0:02:27]} 27. Rf5 {[%clk 0:01:38]}  Qe7 {[%clk 0:02:13]} 28. Qd2 {[%clk 0:01:29]}  Kg7 {[%clk 0:02:09]} 29. Rd1 {[%clk 0:01:13]}  Rad8 {[%clk 0:02:05]} 30. Qe2 {[%clk 0:01:13]}  Rxd1 {[%clk 0:02:02]} 31. Qxd1 {[%clk 0:01:13]}  Rd8 {[%clk 0:02:02]} 32. Qe2 {[%clk 0:01:13]}  Rd6 {[%clk 0:02:03]} 33. a5 {[%clk 0:01:12]}  Rd7 {[%clk 0:01:55]} 34. h4 {[%clk 0:01:10]}  f6 {[%clk 0:01:50]} 35. Qe3 {[%clk 0:01:08]}  Nh8 {[%clk 0:01:30]} 36. Kg2 {[%clk 0:01:07]}  Nf7 {[%clk 0:01:30]} 37. Nh2 {[%clk 0:01:01]}  Kg6 {[%clk 0:01:10]} 38. Qf3 {[%clk 0:00:50]}  Rd6 {[%clk 0:01:03]} 39. Ng4 {[%clk 0:00:40]}  Qd8 {[%clk 0:00:55]} 40. Ne3 {[%clk 0:00:38]}  Rd3 {[%clk 0:00:51]} 41. Qg4+ {[%clk 0:00:37]}  Kh7 {[%clk 0:00:49]} 42. Rf3 {[%clk 0:00:38]}  Nd6 {[%clk 0:00:45]} 43. Qe6 {[%clk 0:00:29]}  Kg7 {[%clk 0:00:25]} 44. Qg4+ {[%clk 0:00:29]}  Kh7 {[%clk 0:00:24]} 45. Nf5 {[%clk 0:00:29]}  Nxf5 {[%clk 0:00:21]} 46. Qxf5+ {[%clk 0:00:29]}  Kg7 {[%clk 0:00:21]} 47. Qg4+ {[%clk 0:00:27]}  Kh7 {[%clk 0:00:20]} 48. h5 {[%clk 0:00:26]}  Rxf3 {[%clk 0:00:19]} 49. Qxf3 {[%clk 0:00:26]}  Qd6 {[%clk 0:00:17]} 50. Qf5+ {[%clk 0:00:26]}  Kh8 {[%clk 0:00:17]} 51. Qg6 {[%clk 0:00:26]}  Qf8 {[%clk 0:00:16]} 52. Kf3 {[%clk 0:00:24]}  c5 {[%clk 0:00:14]} 53. Kg4 {[%clk 0:00:23]}  cxb4 {[%clk 0:00:13]} 54. cxb4 {[%clk 0:00:24]}  Qxb4 {[%clk 0:00:12]} 55. Qxf6+ {[%clk 0:00:21]}  Kg8 {[%clk 0:00:11]} 56. Qg6+ {[%clk 0:00:19]}  Kf8 {[%clk 0:00:11]} 57. Qxh6+ {[%clk 0:00:19]}  Ke7 {[%clk 0:00:11]} 58. Kf5 {[%clk 0:00:17]}  Qxa5 {[%clk 0:00:10]} 59. Qe6+ {[%clk 0:00:16]}  Kd8 {[%clk 0:00:08]} 60. h6 {[%clk 0:00:17]}  Qe1 {[%clk 0:00:07]} 61. f4 {[%clk 0:00:16]}  Qxg3 {[%clk 0:00:00]} 62. Qf6+ {[%clk 0:00:14]} 1-0

[Event "December 19 Early 2023"]
[Site "https://www.chess.com"]
[Date "2023.12.19"]
[Round "8"]
[White "Domingo Nunez, Alejandro"]
[Black "Rakhimgaliyev, Yerlan"]
[Result "1-0"]
[Board "83"]
[TimeControl "180+1"]
[WhiteFideId "22245561"]
[BlackFideId "13705148"]
[WhiteElo "2252"]
[BlackElo "2261"]
[WhiteTeam "ESP"]
[BlackTeam "KAZ"]
[WhiteClock "0:00:05"]
[BlackClock "0:00:03"]

1. e4 {[%clk 0:02:48]}  e5 {[%clk 0:02:59]} 2. Nf3 {[%clk 0:02:43]}  d6 {[%clk 0:02:56]} 3. Bc4 {[%clk 0:02:40]}  Be7 {[%clk 0:02:56]} 4. O-O {[%clk 0:02:40]}  Nf6 {[%clk 0:02:56]} 5. Nc3 {[%clk 0:02:38]}  O-O {[%clk 0:02:56]} 6. Re1 {[%clk 0:02:37]}  Re8 {[%clk 0:02:52]} 7. d4 {[%clk 0:02:36]}  exd4 {[%clk 0:02:52]} 8. Nxd4 {[%clk 0:02:37]}  Bf8 {[%clk 0:02:52]} 9. Bf1 {[%clk 0:02:33]}  Nbd7 {[%clk 0:02:52]} 10. g3 {[%clk 0:02:28]}  c6 {[%clk 0:02:52]} 11. Bg2 {[%clk 0:02:28]}  a5 {[%clk 0:02:52]} 12. a4 {[%clk 0:02:27]}  Nc5 {[%clk 0:02:51]} 13. h3 {[%clk 0:02:25]}  Qb6 {[%clk 0:02:47]} 14. b3 {[%clk 0:02:25]}  Bd7 {[%clk 0:02:46]} 15. Bg5 {[%clk 0:02:22]}  Rad8 {[%clk 0:02:37]} 16. Bxf6 {[%clk 0:02:21]}  gxf6 {[%clk 0:02:38]} 17. Nde2 {[%clk 0:01:50]}  f5 {[%clk 0:02:35]} 18. Nf4 {[%clk 0:01:48]}  fxe4 {[%clk 0:02:30]} 19. Nxe4 {[%clk 0:01:48]}  Nxe4 {[%clk 0:02:26]} 20. Bxe4 {[%clk 0:01:48]}  d5 {[%clk 0:02:27]} 21. Bd3 {[%clk 0:01:48]}  Rxe1+ {[%clk 0:02:24]} 22. Qxe1 {[%clk 0:01:48]}  Qd4 {[%clk 0:02:25]} 23. Rd1 {[%clk 0:01:48]}  Qf6 {[%clk 0:02:19]} 24. Qxa5 {[%clk 0:01:47]}  Bd6 {[%clk 0:02:17]} 25. Nh5 {[%clk 0:01:43]}  Qg5 {[%clk 0:02:05]} 26. h4 {[%clk 0:01:43]}  Qe7 {[%clk 0:02:04]} 27. Re1 {[%clk 0:01:43]}  Qf8 {[%clk 0:02:04]} 28. Nf6+ {[%clk 0:01:37]}  Kh8 {[%clk 0:02:04]} 29. Nxh7 {[%clk 0:01:35]}  Qg8 {[%clk 0:02:01]} 30. Nf6 {[%clk 0:01:13]}  Qf8 {[%clk 0:01:59]} 31. Qd2 {[%clk 0:01:10]}  Qg7 {[%clk 0:01:22]} 32. Nxd7 {[%clk 0:01:08]}  Bxg3 {[%clk 0:01:22]} 33. Qg5 {[%clk 0:00:54]}  Bxh4 {[%clk 0:00:50]} 34. Qxg7+ {[%clk 0:00:53]}  Kxg7 {[%clk 0:00:51]} 35. Ne5 {[%clk 0:00:49]}  Bf6 {[%clk 0:00:51]} 36. Ng4 {[%clk 0:00:47]}  Bc3 {[%clk 0:00:51]} 37. Re7 {[%clk 0:00:45]}  b6 {[%clk 0:00:51]} 38. Rb7 {[%clk 0:00:41]}  Bd4 {[%clk 0:00:48]} 39. Ne3 {[%clk 0:00:41]}  Kf6 {[%clk 0:00:46]} 40. Nf5 {[%clk 0:00:41]}  Bc5 {[%clk 0:00:43]} 41. b4 {[%clk 0:00:40]}  Bxb4 {[%clk 0:00:29]} 42. Rxb6 {[%clk 0:00:39]}  Bf8 {[%clk 0:00:30]} 43. Rxc6+ {[%clk 0:00:39]}  Ke5 {[%clk 0:00:31]} 44. a5 {[%clk 0:00:38]}  Rb8 {[%clk 0:00:27]} 45. Rb6 {[%clk 0:00:37]}  Ra8 {[%clk 0:00:22]} 46. a6 {[%clk 0:00:37]}  Bc5 {[%clk 0:00:23]} 47. Rb7 {[%clk 0:00:34]}  f6 {[%clk 0:00:23]} 48. Kg2 {[%clk 0:00:32]}  Kf4 {[%clk 0:00:21]} 49. Rb5 {[%clk 0:00:23]}  Rc8 {[%clk 0:00:20]} 50. Rxc5 {[%clk 0:00:14]}  Rxc5 {[%clk 0:00:20]} 51. Nd6 {[%clk 0:00:14]}  Ra5 {[%clk 0:00:20]} 52. Nc8 {[%clk 0:00:11]}  Ke5 {[%clk 0:00:21]} 53. a7 {[%clk 0:00:11]}  Ke6 {[%clk 0:00:21]} 54. Kf3 {[%clk 0:00:08]}  Kd7 {[%clk 0:00:21]} 55. Bf5+ {[%clk 0:00:08]}  Kc7 {[%clk 0:00:21]} 56. Kg4 {[%clk 0:00:09]}  Kb7 {[%clk 0:00:20]} 57. Kh5 {[%clk 0:00:07]}  Ra4 {[%clk 0:00:18]} 58. Kg6 {[%clk 0:00:05]}  Rf4 {[%clk 0:00:19]} 59. Kxf6 {[%clk 0:00:05]}  Rxf2 {[%clk 0:00:19]} 60. Ke5 {[%clk 0:00:05]}  Rh2 {[%clk 0:00:02]} 61. Kxd5 {[%clk 0:00:05]}  Rh5 {[%clk 0:00:03]} 62. Ke4 {[%clk 0:00:05]}  Rh4+ {[%clk 0:00:03]} 63. Kd3 {[%clk 0:00:04]}  Rh5 {[%clk 0:00:04]} 64. Be4+ {[%clk 0:00:04]}  Kxc8 {[%clk 0:00:04]} 65. a8=Q+ {[%clk 0:00:04]}  Kc7 {[%clk 0:00:03]} 66. Qb7+ {[%clk 0:00:05]} 1-0

[Event "December 19 Early 2023"]
[Site "https://www.chess.com"]
[Date "2023.12.19"]
[Round "8"]
[White "Kanyamarala, Trisha"]
[Black "Kokoszczynski, Jan"]
[Result "1-0"]
[Board "84"]
[TimeControl "180+1"]
[WhiteFideId "45004722"]
[BlackFideId "1174460"]
[WhiteElo "2078"]
[BlackElo "2266"]
[WhiteTeam "IRL"]
[BlackTeam "POL"]
[WhiteClock "0:00:39"]
[BlackClock "0:00:01"]

1. c4 {[%clk 0:02:53]}  g6 {[%clk 0:02:58]} 2. Nc3 {[%clk 0:02:52]}  Bg7 {[%clk 0:02:59]} 3. d4 {[%clk 0:02:52]}  c5 {[%clk 0:02:59]} 4. e3 {[%clk 0:02:51]}  cxd4 {[%clk 0:02:59]} 5. exd4 {[%clk 0:02:50]}  Nf6 {[%clk 0:02:59]} 6. Nf3 {[%clk 0:02:50]}  d5 {[%clk 0:03:00]} 7. Be2 {[%clk 0:02:42]}  O-O {[%clk 0:02:59]} 8. O-O {[%clk 0:02:42]}  dxc4 {[%clk 0:02:55]} 9. Bxc4 {[%clk 0:02:41]}  b6 {[%clk 0:02:55]} 10. Bf4 {[%clk 0:02:37]}  Bb7 {[%clk 0:02:53]} 11. Rc1 {[%clk 0:02:37]}  Nc6 {[%clk 0:02:42]} 12. a3 {[%clk 0:02:33]}  Rc8 {[%clk 0:02:37]} 13. Ba2 {[%clk 0:02:32]}  Na5 {[%clk 0:02:26]} 14. Ne5 {[%clk 0:02:27]}  Nd5 {[%clk 0:02:23]} 15. Nxd5 {[%clk 0:02:26]}  Rxc1 {[%clk 0:02:21]} 16. Nxe7+ {[%clk 0:02:09]}  Qxe7 {[%clk 0:02:22]} 17. Qxc1 {[%clk 0:02:09]}  Rc8 {[%clk 0:01:15]} 18. Qd2 {[%clk 0:02:08]}  Bxe5 {[%clk 0:01:11]} 19. Bxe5 {[%clk 0:02:07]}  Nc4 {[%clk 0:01:12]} 20. Bxc4 {[%clk 0:02:05]}  Rxc4 {[%clk 0:01:13]} 21. Qh6 {[%clk 0:02:05]}  f6 {[%clk 0:01:13]} 22. Bg3 {[%clk 0:02:03]}  Qe4 {[%clk 0:01:09]} 23. f3 {[%clk 0:01:52]}  Qxd4+ {[%clk 0:01:09]} 24. Bf2 {[%clk 0:01:52]}  Qxb2 {[%clk 0:00:57]} 25. Re1 {[%clk 0:01:52]}  Bc6 {[%clk 0:00:56]} 26. h4 {[%clk 0:01:41]}  Rc2 {[%clk 0:00:47]} 27. Re7 {[%clk 0:01:41]}  Qc1+ {[%clk 0:00:43]} 28. Qxc1 {[%clk 0:01:35]}  Rxc1+ {[%clk 0:00:44]} 29. Kh2 {[%clk 0:01:35]}  Rd1 {[%clk 0:00:14]} 30. Rxa7 {[%clk 0:01:32]}  b5 {[%clk 0:00:14]} 31. Rc7 {[%clk 0:01:22]}  Rd6 {[%clk 0:00:14]} 32. Bc5 {[%clk 0:01:18]}  Re6 {[%clk 0:00:13]} 33. Kg3 {[%clk 0:01:13]}  h6 {[%clk 0:00:14]} 34. Rc8+ {[%clk 0:01:07]}  Kf7 {[%clk 0:00:13]} 35. Rh8 {[%clk 0:01:03]}  Kg7 {[%clk 0:00:12]} 36. Rc8 {[%clk 0:01:03]}  g5 {[%clk 0:00:12]} 37. h5 {[%clk 0:01:02]}  f5 {[%clk 0:00:12]} 38. Bd4+ {[%clk 0:01:00]}  Kf7 {[%clk 0:00:12]} 39. Rc7+ {[%clk 0:00:59]}  Ke8 {[%clk 0:00:11]} 40. Rh7 {[%clk 0:00:55]}  Re2 {[%clk 0:00:10]} 41. Rxh6 {[%clk 0:00:53]}  f4+ {[%clk 0:00:10]} 42. Kh3 {[%clk 0:00:43]}  Bd7+ {[%clk 0:00:03]} 43. g4 {[%clk 0:00:43]}  Bc6 {[%clk 0:00:03]} 44. Rxc6 {[%clk 0:00:42]}  Kd7 {[%clk 0:00:03]} 45. Rc5 {[%clk 0:00:41]}  Rd2 {[%clk 0:00:02]} 46. Bf6 {[%clk 0:00:39]}  Rd5 {[%clk 0:00:01]} 47. Rxd5+ {[%clk 0:00:39]} 1-0

[Event "December 19 Early 2023"]
[Site "https://www.chess.com"]
[Date "2023.12.19"]
[Round "8"]
[White "Shubenkova, Veronika"]
[Black "Gutierrez Olivares, Daniel"]
[Result "0-1"]
[Board "87"]
[TimeControl "180+1"]
[WhiteFideId "44124040"]
[BlackFideId "2264005"]
[WhiteElo "1967"]
[BlackElo "2317"]
[WhiteTeam "RUS"]
[BlackTeam "ESP"]
[WhiteClock "0:00:36"]
[BlackClock "0:00:15"]

1. d4 {[%clk 0:02:59]}  Nf6 {[%clk 0:02:57]} 2. e3 {[%clk 0:02:59]}  e6 {[%clk 0:02:57]} 3. f4 {[%clk 0:02:58]}  b6 {[%clk 0:02:57]} 4. Nf3 {[%clk 0:02:59]}  Bb7 {[%clk 0:02:58]} 5. c3 {[%clk 0:03:00]}  c5 {[%clk 0:02:57]} 6. Bd3 {[%clk 0:03:00]}  d6 {[%clk 0:02:57]} 7. O-O {[%clk 0:03:00]}  g6 {[%clk 0:02:57]} 8. Nbd2 {[%clk 0:03:00]}  Bg7 {[%clk 0:02:57]} 9. Qe2 {[%clk 0:02:59]}  cxd4 {[%clk 0:02:55]} 10. exd4 {[%clk 0:02:59]}  O-O {[%clk 0:02:55]} 11. Ng5 {[%clk 0:02:58]}  Nc6 {[%clk 0:02:43]} 12. Nde4 {[%clk 0:02:56]}  Ne7 {[%clk 0:02:30]} 13. Bd2 {[%clk 0:02:51]}  a6 {[%clk 0:02:28]} 14. Rae1 {[%clk 0:02:50]}  b5 {[%clk 0:02:28]} 15. Rf3 {[%clk 0:02:45]}  Nxe4 {[%clk 0:02:12]} 16. Bxe4 {[%clk 0:02:44]}  Bxe4 {[%clk 0:02:11]} 17. Qxe4 {[%clk 0:02:43]}  h6 {[%clk 0:02:06]} 18. Nh3 {[%clk 0:02:32]}  a5 {[%clk 0:02:01]} 19. a3 {[%clk 0:02:31]}  Nd5 {[%clk 0:01:57]} 20. Nf2 {[%clk 0:02:26]}  Qc7 {[%clk 0:01:51]} 21. h4 {[%clk 0:02:24]}  b4 {[%clk 0:01:47]} 22. axb4 {[%clk 0:02:23]}  axb4 {[%clk 0:01:47]} 23. h5 {[%clk 0:02:23]}  bxc3 {[%clk 0:01:45]} 24. Bxc3 {[%clk 0:02:18]}  Nf6 {[%clk 0:01:42]} 25. Qd3 {[%clk 0:02:12]}  Nxh5 {[%clk 0:01:41]} 26. g4 {[%clk 0:02:11]}  Nf6 {[%clk 0:01:37]} 27. g5 {[%clk 0:02:11]}  Nd5 {[%clk 0:01:27]} 28. gxh6 {[%clk 0:02:06]}  Bxh6 {[%clk 0:01:27]} 29. Bd2 {[%clk 0:02:05]}  Rfb8 {[%clk 0:01:19]} 30. Rh3 {[%clk 0:02:03]}  Bg7 {[%clk 0:01:18]} 31. b3 {[%clk 0:01:53]}  Qb6 {[%clk 0:01:14]} 32. Kg2 {[%clk 0:01:27]}  Qxd4 {[%clk 0:01:11]} 33. Qxd4 {[%clk 0:01:26]}  Bxd4 {[%clk 0:01:11]} 34. Ne4 {[%clk 0:01:26]}  Ra2 {[%clk 0:01:04]} 35. Re2 {[%clk 0:01:25]}  Nxf4+ {[%clk 0:00:52]} 36. Bxf4 {[%clk 0:01:24]}  Rxe2+ {[%clk 0:00:52]} 37. Kf3 {[%clk 0:01:23]}  Rxb3+ {[%clk 0:00:52]} 38. Kxe2 {[%clk 0:01:22]}  Rxh3 {[%clk 0:00:53]} 39. Nxd6 {[%clk 0:01:22]}  f5 {[%clk 0:00:49]} 40. Nb5 {[%clk 0:01:17]}  e5 {[%clk 0:00:42]} 41. Bg5 {[%clk 0:01:17]}  Rg3 {[%clk 0:00:40]} 42. Bh4 {[%clk 0:01:17]}  Rg2+ {[%clk 0:00:39]} 43. Kf3 {[%clk 0:01:16]}  Rb2 {[%clk 0:00:39]} 44. Nc7 {[%clk 0:01:14]}  Rb3+ {[%clk 0:00:39]} 45. Ke2 {[%clk 0:01:13]}  Kf7 {[%clk 0:00:39]} 46. Nd5 {[%clk 0:01:11]}  Ke6 {[%clk 0:00:36]} 47. Ne7 {[%clk 0:01:10]}  Kf7 {[%clk 0:00:33]} 48. Nc8 {[%clk 0:01:08]}  Rh3 {[%clk 0:00:34]} 49. Bg5 {[%clk 0:01:07]}  f4 {[%clk 0:00:31]} 50. Nd6+ {[%clk 0:01:04]}  Ke6 {[%clk 0:00:31]} 51. Nb5 {[%clk 0:01:00]}  Kf5 {[%clk 0:00:29]} 52. Bd8 {[%clk 0:00:58]}  Bc5 {[%clk 0:00:27]} 53. Bc7 {[%clk 0:00:55]}  g5 {[%clk 0:00:26]} 54. Ba5 {[%clk 0:00:51]}  g4 {[%clk 0:00:26]} 55. Nc3 {[%clk 0:00:51]}  Rh2+ {[%clk 0:00:24]} 56. Kf1 {[%clk 0:00:51]}  g3 {[%clk 0:00:24]} 57. Ne2 {[%clk 0:00:49]}  Rf2+ {[%clk 0:00:23]} 58. Ke1 {[%clk 0:00:48]}  g2 {[%clk 0:00:22]} 59. Bd2 {[%clk 0:00:43]}  Rxe2+ {[%clk 0:00:21]} 60. Kxe2 {[%clk 0:00:43]}  g1=Q {[%clk 0:00:22]} 61. Kd3 {[%clk 0:00:40]}  Qd4+ {[%clk 0:00:22]} 62. Kc2 {[%clk 0:00:40]}  Qc4+ {[%clk 0:00:22]} 63. Kd1 {[%clk 0:00:40]}  e4 {[%clk 0:00:22]} 64. Ke1 {[%clk 0:00:39]}  e3 {[%clk 0:00:21]} 65. Bxe3 {[%clk 0:00:38]}  fxe3 {[%clk 0:00:17]} 66. Kd1 {[%clk 0:00:38]}  Qd3+ {[%clk 0:00:15]} 67. Kc1 {[%clk 0:00:38]}  Qd2+ {[%clk 0:00:16]} 68. Kb1 {[%clk 0:00:39]}  e2 {[%clk 0:00:14]} 69. Ka1 {[%clk 0:00:38]}  Ke4 {[%clk 0:00:15]} 70. Kb1 {[%clk 0:00:35]}  Kd3 {[%clk 0:00:15]} 71. Ka1 {[%clk 0:00:35]}  Kc3 {[%clk 0:00:15]} 72. Kb1 {[%clk 0:00:36]}  Bd4 {[%clk 0:00:15]} 73. Ka1 {[%clk 0:00:36]}  Kc4+ {[%clk 0:00:16]} 74. Kb1 {[%clk 0:00:36]}  Kc3 {[%clk 0:00:16]} 75. Ka1 {[%clk 0:00:36]}  e1=Q# {[%clk 0:00:15]} 0-1

[Event "December 19 Early 2023"]
[Site "https://www.chess.com"]
[Date "2023.12.19"]
[Round "8"]
[White "Kvaloy, Aksel Bu"]
[Black "Kostiukov, Alexandr"]
[Result "1-0"]
[Board "91"]
[TimeControl "180+1"]
[WhiteFideId "1528815"]
[BlackFideId "14108100"]
[WhiteElo "2265"]
[BlackElo "2112"]
[WhiteTeam "NOR"]
[BlackTeam "UKR"]
[WhiteClock "0:00:53"]
[BlackClock "0:00:31"]

1. d4 {[%clk 0:03:00]}  g6 {[%clk 0:02:59]} 2. e4 {[%clk 0:02:57]}  c5 {[%clk 0:02:56]} 3. Nf3 {[%clk 0:02:56]}  cxd4 {[%clk 0:02:56]} 4. Qxd4 {[%clk 0:02:54]}  Nf6 {[%clk 0:02:56]} 5. e5 {[%clk 0:02:54]}  Nc6 {[%clk 0:02:56]} 6. Qa4 {[%clk 0:02:54]}  Nd5 {[%clk 0:02:55]} 7. Qe4 {[%clk 0:02:54]}  Ndb4 {[%clk 0:02:54]} 8. Bb5 {[%clk 0:02:31]}  Bg7 {[%clk 0:02:46]} 9. Nc3 {[%clk 0:02:20]}  O-O {[%clk 0:02:40]} 10. a3 {[%clk 0:02:00]}  Qa5 {[%clk 0:02:02]} 11. Bd2 {[%clk 0:01:45]}  d5 {[%clk 0:01:58]} 12. Nxd5 {[%clk 0:01:20]}  Bf5 {[%clk 0:01:35]} 13. Nxe7+ {[%clk 0:01:17]}  Kh8 {[%clk 0:01:29]} 14. Nxf5 {[%clk 0:01:17]}  gxf5 {[%clk 0:01:29]} 15. Qc4 {[%clk 0:00:57]}  a6 {[%clk 0:00:31]} 16. Bxc6 {[%clk 0:00:53]} 1-0